[Event "Late-Titled-Tuesday-Blitz-April-30-2024"]
[Site "Chess.com"]
[Date "2024.04.30"]
[Round "4"]
[White "jactorres"]
[Black "VirtualCoach"]
[Result "1-0"]
[WhiteElo "2446"]
[BlackElo "2068"]
[TimeControl "180+1"]
[EndTime "14:40:48 PDT"]
[Termination "jactorres won by resignation"]

1. e4 {[%clk 0:02:38.9]} 1... c5 {[%clk 0:02:59.3]} 2. Nf3 {[%clk 0:02:37.9]}
2... Nc6 {[%clk 0:02:59.5]} 3. d4 {[%clk 0:02:38.2]} 3... cxd4 {[%clk
0:02:59.9]} 4. Nxd4 {[%clk 0:02:39.1]} 4... Nf6 {[%clk 0:03:00.2]} 5. Nc3 {[%clk
0:02:39.7]} 5... e5 {[%clk 0:03:00.7]} 6. Ndb5 {[%clk 0:02:39.2]} 6... d6 {[%clk
0:03:01.1]} 7. Nd5 {[%clk 0:02:32.9]} 7... Nxd5 {[%clk 0:03:00.5]} 8. exd5
{[%clk 0:02:33.3]} 8... Nb8 {[%clk 0:03:01.1]} 9. a4 {[%clk 0:02:32.5]} 9... Be7
{[%clk 0:03:00.3]} 10. Be3 {[%clk 0:02:23.2]} 10... a6 {[%clk 0:02:58.3]} 11.
Nc3 {[%clk 0:02:18.6]} 11... O-O {[%clk 0:02:57.5]} 12. g4 {[%clk 0:02:13.8]}
12... f5 {[%clk 0:02:54.3]} 13. gxf5 {[%clk 0:02:10.6]} 13... Bxf5 {[%clk
0:02:53.5]} 14. Qd2 {[%clk 0:02:06.2]} 14... Nd7 {[%clk 0:02:51.1]} 15. O-O-O
{[%clk 0:02:03.8]} 15... Rc8 {[%clk 0:02:49.5]} 16. Bd3 {[%clk 0:01:36.1]} 16...
Nc5 {[%clk 0:02:47.9]} 17. Bxc5 {[%clk 0:01:28.7]} 17... Rxc5 {[%clk 0:02:45.7]}
18. Kb1 {[%clk 0:01:21.8]} 18... Bg5 {[%clk 0:02:36.1]} 19. Qe2 {[%clk
0:01:12.3]} 19... Qb6 {[%clk 0:02:18.2]} 20. Bxf5 {[%clk 0:00:26.6]} 20... Rxf5
{[%clk 0:02:16]} 21. Ne4 {[%clk 0:00:21.4]} 21... Ra5 {[%clk 0:01:58.9]} 22.
Nxg5 {[%clk 0:00:20.6]} 22... Rb5 {[%clk 0:01:59.8]} 23. axb5 {[%clk 0:00:16.5]}
23... Rxg5 {[%clk 0:01:58.4]} 24. Qe3 {[%clk 0:00:16]} 24... Qd8 {[%clk
0:01:57.3]} 25. Rdg1 {[%clk 0:00:15.3]} 25... Rf5 {[%clk 0:01:56.6]} 26. Rg2
{[%clk 0:00:15.1]} 26... g6 {[%clk 0:01:54.9]} 27. Rhg1 {[%clk 0:00:15.2]} 27...
Rf4 {[%clk 0:01:54.3]} 28. Rg4 {[%clk 0:00:12.7]} 28... Rf6 {[%clk 0:01:50.4]}
29. h4 {[%clk 0:00:12.9]} 29... Kf7 {[%clk 0:01:41.8]} 30. h5 {[%clk 0:00:13.2]}
30... axb5 {[%clk 0:01:41]} 31. hxg6+ {[%clk 0:00:13.3]} 31... hxg6 {[%clk
0:01:41.8]} 32. Qh6 {[%clk 0:00:13.2]} 32... Qg8 {[%clk 0:01:41.8]} 33. Rh1
{[%clk 0:00:08.4]} 33... Rxf2 {[%clk 0:01:26.3]} 34. Qh7+ {[%clk 0:00:08.4]}
34... Qxh7 {[%clk 0:01:25]} 35. Rxh7+ {[%clk 0:00:09.3]} 35... Kf6 {[%clk
0:01:25.6]} 36. Rxb7 {[%clk 0:00:08.2]} 36... Rd2 {[%clk 0:01:25.3]} 37. Rxb5
{[%clk 0:00:06.2]} 37... Kf5 {[%clk 0:01:25.8]} 38. Rg1 {[%clk 0:00:05.1]} 38...
g5 {[%clk 0:01:26.2]} 39. Kc1 {[%clk 0:00:05.5]} 39... Rd4 {[%clk 0:01:25.3]}
40. c3 {[%clk 0:00:05.1]} 40... Rd3 {[%clk 0:01:25.1]} 41. Kc2 {[%clk 0:00:05]}
41... Rf3 {[%clk 0:01:25.1]} 42. Rb8 {[%clk 0:00:03.9]} 42... Rf2+ {[%clk
0:01:24.6]} 43. Kb3 {[%clk 0:00:04.3]} 43... Rd2 {[%clk 0:01:24.5]} 44. Rf8+
{[%clk 0:00:04]} 44... Ke4 {[%clk 0:01:21.8]} 45. Rg8 {[%clk 0:00:04.4]} 45...
Kxd5 {[%clk 0:01:20.2]} 46. R8xg5 {[%clk 0:00:04.2]} 46... Kc5 {[%clk 0:01:20]}
47. R5g2 {[%clk 0:00:03.3]} 47... Rd3 {[%clk 0:01:17.8]} 48. Re2 {[%clk
0:00:03]} 48... Rf3 {[%clk 0:01:16.9]} 49. Rge1 {[%clk 0:00:03.5]} 49... Rf8
{[%clk 0:01:14]} 50. Kc2 {[%clk 0:00:03.9]} 50... Rf3 {[%clk 0:01:13.1]} 51. b4+
{[%clk 0:00:04.4]} 51... Kd5 {[%clk 0:01:10.6]} 52. Rd1+ {[%clk 0:00:04.6]}
52... Kc6 {[%clk 0:01:10.6]} 53. Red2 {[%clk 0:00:04.2]} 53... Rf6 {[%clk
0:01:09.4]} 54. Kb3 {[%clk 0:00:03.8]} 54... Rg6 {[%clk 0:01:05.9]} 55. Re1
{[%clk 0:00:04]} 55... Re6 {[%clk 0:01:03.3]} 56. c4 {[%clk 0:00:04.2]} 56...
Rg6 {[%clk 0:01:01.5]} 57. b5+ {[%clk 0:00:04.6]} 57... Kb6 {[%clk 0:01:00.9]}
58. Red1 {[%clk 0:00:04.6]} 58... Rg3+ {[%clk 0:00:56.2]} 59. Kb4 {[%clk
0:00:04.9]} 1-0

[Event "Late-Titled-Tuesday-Blitz-April-30-2024"]
[Site "Chess.com"]
[Date "2024.04.30"]
[Round "4"]
[White "kalinchick"]
[Black "guillembaches"]
[Result "1-0"]
[WhiteElo "2483"]
[BlackElo "2578"]
[TimeControl "180+1"]
[EndTime "14:40:51 PDT"]
[Termination "kalinchick won on time"]

1. Nf3 {[%clk 0:03:00.9]} 1... d5 {[%clk 0:02:59.9]} 2. g3 {[%clk 0:03:01.5]}
2... Nf6 {[%clk 0:02:57.7]} 3. Bg2 {[%clk 0:03:02]} 3... e6 {[%clk 0:02:57.4]}
4. O-O {[%clk 0:03:02.6]} 4... Be7 {[%clk 0:02:57.4]} 5. d3 {[%clk 0:03:03.3]}
5... O-O {[%clk 0:02:57]} 6. c3 {[%clk 0:03:04.2]} 6... c5 {[%clk 0:02:54.7]} 7.
Nbd2 {[%clk 0:03:05.1]} 7... Nc6 {[%clk 0:02:53.5]} 8. e4 {[%clk 0:03:05.1]}
8... b5 {[%clk 0:02:52.9]} 9. Qe2 {[%clk 0:02:58.1]} 9... a5 {[%clk 0:02:51.5]}
10. Re1 {[%clk 0:02:51.9]} 10... b4 {[%clk 0:02:50.9]} 11. Nf1 {[%clk 0:02:44]}
11... Ba6 {[%clk 0:02:42]} 12. e5 {[%clk 0:02:37.8]} 12... Nd7 {[%clk
0:02:36.9]} 13. h4 {[%clk 0:02:32.2]} 13... a4 {[%clk 0:02:30]} 14. h5 {[%clk
0:02:21.5]} 14... a3 {[%clk 0:02:25.1]} 15. h6 {[%clk 0:02:21.1]} 15... g6
{[%clk 0:02:24.9]} 16. N1h2 {[%clk 0:02:20.6]} 16... Qa5 {[%clk 0:02:10.8]} 17.
c4 {[%clk 0:02:03.3]} 17... axb2 {[%clk 0:01:48.3]} 18. Bxb2 {[%clk 0:01:55.4]}
18... Nb6 {[%clk 0:01:43.7]} 19. Nd2 {[%clk 0:01:41.1]} 19... Qa4 {[%clk
0:01:17.3]} 20. Ng4 {[%clk 0:01:19.6]} 20... Qc2 {[%clk 0:01:05]} 21. Rab1
{[%clk 0:01:12.7]} 21... Nd4 {[%clk 0:00:52.7]} 22. Bxd4 {[%clk 0:01:01.4]}
22... cxd4 {[%clk 0:00:53.6]} 23. Rec1 {[%clk 0:00:57.5]} 23... Qa4 {[%clk
0:00:50]} 24. c5 {[%clk 0:00:52.8]} 24... Nd7 {[%clk 0:00:46.1]} 25. c6 {[%clk
0:00:52.1]} 25... Nc5 {[%clk 0:00:46]} 26. Nb3 {[%clk 0:00:32]} 26... Nxd3
{[%clk 0:00:39.2]} 27. Rc2 {[%clk 0:00:22.9]} 27... Rfc8 {[%clk 0:00:34.1]} 28.
Qd2 {[%clk 0:00:16.1]} 28... Rxc6 {[%clk 0:00:29]} 29. Bf1 {[%clk 0:00:16.5]}
29... Nc5 {[%clk 0:00:23.9]} 30. Nxc5 {[%clk 0:00:16]} 30... Rxc5 {[%clk
0:00:23.7]} 31. Bxa6 {[%clk 0:00:15.9]} 31... Qxa6 {[%clk 0:00:22.5]} 32. Rxc5
{[%clk 0:00:15.8]} 32... Bxc5 {[%clk 0:00:22.8]} 33. Nf6+ {[%clk 0:00:16.4]}
33... Kh8 {[%clk 0:00:22.3]} 34. Qf4 {[%clk 0:00:17.2]} 34... Qxa2 {[%clk
0:00:19.3]} 35. Rf1 {[%clk 0:00:17.6]} 35... Qc2 {[%clk 0:00:16.8]} 36. Nd7
{[%clk 0:00:17.6]} 36... Qf5 {[%clk 0:00:14.6]} 37. Qxf5 {[%clk 0:00:17.6]}
37... gxf5 {[%clk 0:00:15]} 38. Nxc5 {[%clk 0:00:18.5]} 38... Rc8 {[%clk
0:00:14.3]} 39. Nd3 {[%clk 0:00:18.2]} 39... Rc3 {[%clk 0:00:14.3]} 40. Ra1
{[%clk 0:00:18.5]} 40... Rc8 {[%clk 0:00:11.6]} 41. Nxb4 {[%clk 0:00:18.9]}
41... Kg8 {[%clk 0:00:10.6]} 42. Nc6 {[%clk 0:00:19.3]} 42... f6 {[%clk
0:00:09.8]} 43. Ne7+ {[%clk 0:00:19.3]} 1-0

[Event "Late-Titled-Tuesday-Blitz-April-30-2024"]
[Site "Chess.com"]
[Date "2024.04.30"]
[Round "4"]
[White "The_Straightforward_Rook"]
[Black "MNyuyu"]
[Result "1/2-1/2"]
[WhiteElo "2512"]
[BlackElo "2371"]
[TimeControl "180+1"]
[EndTime "14:40:52 PDT"]
[Termination "Game drawn - insufficient material"]

1. e4 {[%clk 0:03:00.9]} 1... d5 {[%clk 0:02:59]} 2. exd5 {[%clk 0:02:58.9]}
2... Qxd5 {[%clk 0:02:59.9]} 3. Nc3 {[%clk 0:02:59.1]} 3... Qd6 {[%clk
0:02:59.2]} 4. g3 {[%clk 0:02:58]} 4... c6 {[%clk 0:02:58.4]} 5. Bg2 {[%clk
0:02:58.4]} 5... Bf5 {[%clk 0:02:57.9]} 6. d3 {[%clk 0:02:57.3]} 6... e6 {[%clk
0:02:58.4]} 7. Nge2 {[%clk 0:02:55.6]} 7... Nf6 {[%clk 0:02:57.8]} 8. Bf4 {[%clk
0:02:54.6]} 8... Qd8 {[%clk 0:02:57.6]} 9. Qd2 {[%clk 0:02:54.9]} 9... Bd6
{[%clk 0:02:57.8]} 10. O-O {[%clk 0:02:45.7]} 10... O-O {[%clk 0:02:58.2]} 11.
h3 {[%clk 0:02:40.9]} 11... Qc7 {[%clk 0:02:57.7]} 12. Bxd6 {[%clk 0:02:40]}
12... Qxd6 {[%clk 0:02:57.5]} 13. Qf4 {[%clk 0:02:36.7]} 13... Qxf4 {[%clk
0:02:54.7]} 14. Nxf4 {[%clk 0:02:37.6]} 14... Nbd7 {[%clk 0:02:54.4]} 15. g4
{[%clk 0:02:37.2]} 15... Bg6 {[%clk 0:02:54.1]} 16. b4 {[%clk 0:02:33]} 16... a6
{[%clk 0:02:52.7]} 17. a4 {[%clk 0:02:26.5]} 17... Nd5 {[%clk 0:02:53.1]} 18.
Ncxd5 {[%clk 0:02:25.4]} 18... exd5 {[%clk 0:02:42.9]} 19. Nxg6 {[%clk
0:02:24.4]} 19... hxg6 {[%clk 0:02:42.3]} 20. b5 {[%clk 0:02:20.6]} 20... axb5
{[%clk 0:02:39.6]} 21. axb5 {[%clk 0:02:21.5]} 21... Rfe8 {[%clk 0:02:36.2]} 22.
c4 {[%clk 0:02:04.6]} 22... Nb6 {[%clk 0:01:57.6]} 23. Rab1 {[%clk 0:01:56.5]}
23... cxb5 {[%clk 0:01:48.6]} 24. Rxb5 {[%clk 0:01:55.4]} 24... Ra6 {[%clk
0:01:39.6]} 25. Rfb1 {[%clk 0:01:50.1]} 25... Na4 {[%clk 0:01:38.6]} 26. Rxb7
{[%clk 0:01:47]} 26... dxc4 {[%clk 0:01:36.2]} 27. dxc4 {[%clk 0:01:44.4]} 27...
Nc3 {[%clk 0:01:34.2]} 28. Rb8 {[%clk 0:01:39.9]} 28... Re6 {[%clk 0:01:29.3]}
29. Rxe8+ {[%clk 0:01:31.4]} 29... Rxe8 {[%clk 0:01:28.8]} 30. Rb7 {[%clk
0:01:30.7]} 30... Rc8 {[%clk 0:01:26.7]} 31. Bd5 {[%clk 0:01:13.2]} 31... Nxd5
{[%clk 0:01:25]} 32. cxd5 {[%clk 0:01:14.1]} 32... Rc1+ {[%clk 0:01:23.5]} 33.
Kg2 {[%clk 0:01:13]} 33... Rd1 {[%clk 0:01:24.4]} 34. Rd7 {[%clk 0:01:12]} 34...
Kf8 {[%clk 0:01:23.3]} 35. Rd8+ {[%clk 0:00:19.7]} 35... Ke7 {[%clk 0:01:23.3]}
36. Rg8 {[%clk 0:00:20.4]} 36... Rxd5 {[%clk 0:01:19.1]} 37. Rxg7 {[%clk
0:00:20.7]} 37... Kf8 {[%clk 0:01:17]} 38. Rh7 {[%clk 0:00:20.3]} 38... Kg8
{[%clk 0:01:17.4]} 39. Rh4 {[%clk 0:00:19.7]} 39... Kg7 {[%clk 0:01:12.7]} 40.
f4 {[%clk 0:00:19.1]} 40... f6 {[%clk 0:01:07.2]} 41. g5 {[%clk 0:00:17.4]}
41... fxg5 {[%clk 0:01:00.8]} 42. fxg5 {[%clk 0:00:18.3]} 42... Rxg5+ {[%clk
0:01:00.9]} 43. Rg4 {[%clk 0:00:18.9]} 43... Ra5 {[%clk 0:01:00.7]} 44. Kg3
{[%clk 0:00:19.1]} 44... Kf6 {[%clk 0:00:58.9]} 45. Rb4 {[%clk 0:00:19.4]} 45...
Kf5 {[%clk 0:00:56.8]} 46. Rc4 {[%clk 0:00:18.9]} 46... Ra3+ {[%clk 0:00:55.8]}
47. Kg2 {[%clk 0:00:19.2]} 47... g5 {[%clk 0:00:54.8]} 48. Rc5+ {[%clk
0:00:18.8]} 48... Kg6 {[%clk 0:00:53.5]} 49. Rc4 {[%clk 0:00:19.1]} 49... Kh5
{[%clk 0:00:51.6]} 50. Rb4 {[%clk 0:00:19.7]} 50... Rd3 {[%clk 0:00:50.2]} 51.
Kh2 {[%clk 0:00:19.7]} 51... Kg6 {[%clk 0:00:49.8]} 52. Kg2 {[%clk 0:00:19.3]}
52... Rd5 {[%clk 0:00:47]} 53. Kg3 {[%clk 0:00:19.2]} 53... Kf5 {[%clk
0:00:47.4]} 54. Kg2 {[%clk 0:00:19.6]} 54... Re5 {[%clk 0:00:46.7]} 55. Kg3
{[%clk 0:00:19.4]} 55... Re3+ {[%clk 0:00:47.2]} 56. Kg2 {[%clk 0:00:19.8]}
56... Rc3 {[%clk 0:00:45]} 57. Ra4 {[%clk 0:00:19]} 57... Re3 {[%clk 0:00:39.5]}
58. Rb4 {[%clk 0:00:19.4]} 58... Re4 {[%clk 0:00:39.1]} 59. Rxe4 {[%clk
0:00:19]} 59... Kxe4 {[%clk 0:00:39.6]} 60. Kg3 {[%clk 0:00:19.9]} 60... Kf5
{[%clk 0:00:40.2]} 61. h4 {[%clk 0:00:19.1]} 61... gxh4+ {[%clk 0:00:40]} 62.
Kxh4 {[%clk 0:00:19.2]} 1/2-1/2

[Event "Late-Titled-Tuesday-Blitz-April-30-2024"]
[Site "Chess.com"]
[Date "2024.04.30"]
[Round "4"]
[White "PNEPaul"]
[Black "klercaku"]
[Result "0-1"]
[WhiteElo "1950"]
[BlackElo "2255"]
[TimeControl "180+1"]
[EndTime "14:40:54 PDT"]
[Termination "klercaku won on time"]

1. e4 {[%clk 0:02:59.3]} 1... e5 {[%clk 0:02:59.2]} 2. Nf3 {[%clk 0:02:59.2]}
2... Nc6 {[%clk 0:02:59.2]} 3. Bc4 {[%clk 0:02:59.2]} 3... Bc5 {[%clk
0:02:58.3]} 4. b4 {[%clk 0:02:58.4]} 4... Bxb4 {[%clk 0:02:57.9]} 5. c3 {[%clk
0:02:58.6]} 5... Ba5 {[%clk 0:02:58.1]} 6. d4 {[%clk 0:02:58.5]} 6... exd4
{[%clk 0:02:57.3]} 7. O-O {[%clk 0:02:58.4]} 7... d6 {[%clk 0:02:49.6]} 8. cxd4
{[%clk 0:02:57.6]} 8... Bb6 {[%clk 0:02:49.6]} 9. Nc3 {[%clk 0:02:56.5]} 9...
Bg4 {[%clk 0:02:47.5]} 10. Be3 {[%clk 0:02:36.6]} 10... Nge7 {[%clk 0:02:12.9]}
11. Bxf7+ {[%clk 0:02:29.8]} 11... Kf8 {[%clk 0:01:50.3]} 12. h3 {[%clk
0:02:28.3]} 12... Kxf7 {[%clk 0:01:23.5]} 13. Ng5+ {[%clk 0:02:27]} 13... Ke8
{[%clk 0:01:10.6]} 14. Qxg4 {[%clk 0:02:26.2]} 14... Ng6 {[%clk 0:00:56.6]} 15.
Nxh7 {[%clk 0:01:58.7]} 15... Nce7 {[%clk 0:00:38.9]} 16. Ng5 {[%clk 0:01:48.5]}
16... Qd7 {[%clk 0:00:36.2]} 17. Ne6 {[%clk 0:01:25.5]} 17... Kf7 {[%clk
0:00:17.1]} 18. d5 {[%clk 0:01:18.8]} 18... Rh4 {[%clk 0:00:06.2]} 19. Qg3
{[%clk 0:01:02.7]} 19... Rhh8 {[%clk 0:00:03.1]} 20. Bxb6 {[%clk 0:00:47.5]}
20... axb6 {[%clk 0:00:02.8]} 21. Ng5+ {[%clk 0:00:41.5]} 21... Ke8 {[%clk
0:00:01.7]} 22. Ne6 {[%clk 0:00:38]} 22... Rg8 {[%clk 0:00:01.7]} 23. h4 {[%clk
0:00:30.9]} 23... Nf8 {[%clk 0:00:01.7]} 24. Nb5 {[%clk 0:00:18.4]} 24... Nxe6
{[%clk 0:00:01.6]} 25. dxe6 {[%clk 0:00:14.5]} 25... Qxb5 {[%clk 0:00:01.7]} 26.
Qf3 {[%clk 0:00:10.3]} 26... Qe5 {[%clk 0:00:02]} 27. Qf7+ {[%clk 0:00:09.5]}
27... Kd8 {[%clk 0:00:02.3]} 28. f4 {[%clk 0:00:09.2]} 28... Qf6 {[%clk
0:00:02.5]} 29. Qh5 {[%clk 0:00:07.5]} 29... g6 {[%clk 0:00:02.3]} 30. Qg4
{[%clk 0:00:07]} 30... Qg7 {[%clk 0:00:02.3]} 31. Rad1 {[%clk 0:00:05.3]} 31...
Qc3 {[%clk 0:00:02.2]} 32. e5 {[%clk 0:00:04.5]} 32... Qc5+ {[%clk 0:00:02.3]}
33. Kh2 {[%clk 0:00:03.7]} 33... Kc8 {[%clk 0:00:02.2]} 34. exd6 {[%clk
0:00:03.5]} 34... Nc6 {[%clk 0:00:01.7]} 35. d7+ {[%clk 0:00:03.1]} 35... Kd8
{[%clk 0:00:02]} 36. Qg5+ {[%clk 0:00:02.6]} 36... Ne7 {[%clk 0:00:02.6]} 37.
Qf6 {[%clk 0:00:01.9]} 37... Qh5 {[%clk 0:00:01.8]} 38. Qf7 {[%clk 0:00:01.5]}
38... Qxh4+ {[%clk 0:00:01.9]} 39. Kg1 {[%clk 0:00:01.6]} 39... Qh8 {[%clk
0:00:01.5]} 0-1

[Event "Late-Titled-Tuesday-Blitz-April-30-2024"]
[Site "Chess.com"]
[Date "2024.04.30"]
[Round "4"]
[White "Jarming"]
[Black "SergioMoralesG"]
[Result "1/2-1/2"]
[WhiteElo "2677"]
[BlackElo "2468"]
[TimeControl "180+1"]
[EndTime "14:40:55 PDT"]
[Termination "Game drawn by repetition"]

1. c4 {[%clk 0:03:00.9]} 1... Nf6 {[%clk 0:02:58.3]} 2. g3 {[%clk 0:03:01]} 2...
c6 {[%clk 0:02:57.4]} 3. Bg2 {[%clk 0:03:00.3]} 3... d5 {[%clk 0:02:57.7]} 4.
Nf3 {[%clk 0:03:00.8]} 4... Bg4 {[%clk 0:02:56.4]} 5. b3 {[%clk 0:02:59.7]} 5...
Nbd7 {[%clk 0:02:54.9]} 6. Bb2 {[%clk 0:02:59.6]} 6... Bxf3 {[%clk 0:02:53.2]}
7. Bxf3 {[%clk 0:02:59.5]} 7... e5 {[%clk 0:02:53.7]} 8. d3 {[%clk 0:02:59.6]}
8... Bb4+ {[%clk 0:02:47.1]} 9. Kf1 {[%clk 0:02:54.5]} 9... O-O {[%clk 0:02:42]}
10. a3 {[%clk 0:02:53.9]} 10... Bd6 {[%clk 0:02:41.3]} 11. Nc3 {[%clk
0:02:53.7]} 11... d4 {[%clk 0:02:37.5]} 12. Ne4 {[%clk 0:02:47.5]} 12... Nxe4
{[%clk 0:02:36.6]} 13. Bxe4 {[%clk 0:02:48.4]} 13... f5 {[%clk 0:02:36.4]} 14.
Bg2 {[%clk 0:02:48.4]} 14... f4 {[%clk 0:02:34.2]} 15. gxf4 {[%clk 0:02:45.8]}
15... Rxf4 {[%clk 0:02:31.6]} 16. b4 {[%clk 0:02:40.3]} 16... Nf6 {[%clk
0:02:28.6]} 17. Bc1 {[%clk 0:02:32.8]} 17... Rf5 {[%clk 0:02:22.1]} 18. e4
{[%clk 0:02:30.5]} 18... dxe3 {[%clk 0:02:09.8]} 19. Bxe3 {[%clk 0:02:29.9]}
19... Qe7 {[%clk 0:01:50.9]} 20. Qe2 {[%clk 0:02:26.8]} 20... Rf8 {[%clk
0:01:46.1]} 21. Re1 {[%clk 0:02:06.8]} 21... Qf7 {[%clk 0:01:18.8]} 22. h4
{[%clk 0:01:54.1]} 22... h5 {[%clk 0:01:14.2]} 23. Bh3 {[%clk 0:01:53.4]} 23...
Ng4 {[%clk 0:01:07.2]} 24. Bxg4 {[%clk 0:01:53.2]} 24... hxg4 {[%clk 0:01:07.4]}
25. Rg1 {[%clk 0:01:53.7]} 25... e4 {[%clk 0:00:41.9]} 26. dxe4 {[%clk
0:01:40.5]} 26... Rf3 {[%clk 0:00:42]} 27. Rxg4 {[%clk 0:01:03.3]} 27... Bg3
{[%clk 0:00:40.8]} 28. Kg2 {[%clk 0:00:53.9]} 28... Bxf2 {[%clk 0:00:36.4]} 29.
Rf1 {[%clk 0:00:49.9]} 29... Rxe3 {[%clk 0:00:33.2]} 30. Qxf2 {[%clk 0:00:50.4]}
30... Qxf2+ {[%clk 0:00:28.7]} 31. Rxf2 {[%clk 0:00:51.3]} 31... Rxf2+ {[%clk
0:00:28.6]} 32. Kxf2 {[%clk 0:00:52.2]} 32... Rxa3 {[%clk 0:00:27.7]} 33. e5
{[%clk 0:00:49]} 33... Kf7 {[%clk 0:00:25.5]} 34. e6+ {[%clk 0:00:46.5]} 34...
Kxe6 {[%clk 0:00:20.1]} 35. Rxg7 {[%clk 0:00:47.1]} 35... b6 {[%clk 0:00:18.9]}
36. h5 {[%clk 0:00:46.7]} 36... Rh3 {[%clk 0:00:13.2]} 37. Rh7 {[%clk
0:00:41.3]} 37... a5 {[%clk 0:00:12]} 38. bxa5 {[%clk 0:00:41.6]} 38... bxa5
{[%clk 0:00:12.9]} 39. h6 {[%clk 0:00:41.8]} 39... Kd6 {[%clk 0:00:11.3]} 40.
Kg2 {[%clk 0:00:37]} 40... Rh5 {[%clk 0:00:10.6]} 41. Kg3 {[%clk 0:00:37.6]}
41... Kc5 {[%clk 0:00:10.8]} 42. Kg4 {[%clk 0:00:38.1]} 42... Rh1 {[%clk
0:00:11.1]} 43. Kg5 {[%clk 0:00:39]} 43... Kxc4 {[%clk 0:00:10.3]} 44. Rc7
{[%clk 0:00:39.6]} 44... c5 {[%clk 0:00:10.3]} 45. h7 {[%clk 0:00:40.1]} 45...
a4 {[%clk 0:00:09.4]} 46. Kg6 {[%clk 0:00:40.6]} 46... Rxh7 {[%clk 0:00:09.5]}
47. Kxh7 {[%clk 0:00:40.1]} 47... a3 {[%clk 0:00:09.9]} 48. Ra7 {[%clk
0:00:38.8]} 48... Kb3 {[%clk 0:00:10.2]} 49. Kg6 {[%clk 0:00:39.7]} 49... c4
{[%clk 0:00:09.9]} 50. Kf5 {[%clk 0:00:40.2]} 50... c3 {[%clk 0:00:09.4]} 51.
Rb7+ {[%clk 0:00:40.2]} 51... Kc2 {[%clk 0:00:08.9]} 52. Ra7 {[%clk 0:00:39.7]}
52... Kb2 {[%clk 0:00:07.6]} 53. Rb7+ {[%clk 0:00:39.9]} 53... Ka1 {[%clk
0:00:05.4]} 54. Ke4 {[%clk 0:00:36.9]} 54... c2 {[%clk 0:00:05]} 55. Rc7 {[%clk
0:00:36.8]} 55... Kb1 {[%clk 0:00:05.5]} 56. Rb7+ {[%clk 0:00:37.3]} 56... Ka1
{[%clk 0:00:06]} 57. Rc7 {[%clk 0:00:37.3]} 57... Kb1 {[%clk 0:00:06.5]} 58.
Rb7+ {[%clk 0:00:37.7]} 58... Ka1 {[%clk 0:00:04.5]} 1/2-1/2

[Event "Late-Titled-Tuesday-Blitz-April-30-2024"]
[Site "Chess.com"]
[Date "2024.04.30"]
[Round "4"]
[White "OIAM03"]
[Black "BeautiFullMindChess"]
[Result "0-1"]
[WhiteElo "1944"]
[BlackElo "2250"]
[TimeControl "180+1"]
[EndTime "14:41:02 PDT"]
[Termination "BeautiFullMindChess won on time"]

1. e4 {[%clk 0:02:59.6]} 1... c5 {[%clk 0:02:59.4]} 2. c3 {[%clk 0:02:59.1]}
2... Nf6 {[%clk 0:02:57]} 3. e5 {[%clk 0:02:58.2]} 3... Nd5 {[%clk 0:02:57.4]}
4. d4 {[%clk 0:02:58.2]} 4... cxd4 {[%clk 0:02:57.8]} 5. Nf3 {[%clk 0:02:58.2]}
5... g6 {[%clk 0:02:57.1]} 6. cxd4 {[%clk 0:02:56.1]} 6... Bg7 {[%clk
0:02:55.7]} 7. Bc4 {[%clk 0:02:55.8]} 7... Nb6 {[%clk 0:02:54.8]} 8. Bb3 {[%clk
0:02:51.1]} 8... O-O {[%clk 0:02:54.5]} 9. O-O {[%clk 0:02:50.6]} 9... d5 {[%clk
0:02:53.6]} 10. Nc3 {[%clk 0:02:46.3]} 10... Bg4 {[%clk 0:02:49.5]} 11. h3
{[%clk 0:02:45]} 11... Bxf3 {[%clk 0:02:49.5]} 12. Qxf3 {[%clk 0:02:44.8]} 12...
e6 {[%clk 0:02:50.1]} 13. Qg4 {[%clk 0:01:49.5]} 13... h5 {[%clk 0:02:36.6]} 14.
Qg3 {[%clk 0:01:48.3]} 14... Nc6 {[%clk 0:02:36.2]} 15. Be3 {[%clk 0:01:45.5]}
15... Nc8 {[%clk 0:02:30.5]} 16. Rac1 {[%clk 0:01:35.5]} 16... N8e7 {[%clk
0:02:29.2]} 17. Bc2 {[%clk 0:01:34]} 17... Qb6 {[%clk 0:02:27.7]} 18. Na4 {[%clk
0:01:28.5]} 18... Qb5 {[%clk 0:02:18.1]} 19. b3 {[%clk 0:01:22.6]} 19... Rac8
{[%clk 0:02:07]} 20. Nc5 {[%clk 0:01:21.6]} 20... Nb4 {[%clk 0:01:57.3]} 21. a4
{[%clk 0:01:11.2]} 21... Qc6 {[%clk 0:01:42.8]} 22. Bb1 {[%clk 0:01:09.2]} 22...
b6 {[%clk 0:01:33.4]} 23. Ne4 {[%clk 0:00:56.5]} 23... Qa8 {[%clk 0:00:39.3]}
24. Nd6 {[%clk 0:00:55.9]} 24... Nbc6 {[%clk 0:00:25]} 25. Nxc8 {[%clk
0:00:46.2]} 25... Rxc8 {[%clk 0:00:23.6]} 26. Rc3 {[%clk 0:00:37]} 26... Na5
{[%clk 0:00:16.3]} 27. Rfc1 {[%clk 0:00:35.3]} 27... Rxc3 {[%clk 0:00:16.8]} 28.
Rxc3 {[%clk 0:00:35.4]} 28... Qb7 {[%clk 0:00:16.9]} 29. Bg5 {[%clk 0:00:34.6]}
29... Nec6 {[%clk 0:00:14.6]} 30. Bf6 {[%clk 0:00:32.3]} 30... Nxd4 {[%clk
0:00:14.2]} 31. Bd3 {[%clk 0:00:24.5]} 31... Naxb3 {[%clk 0:00:12.3]} 32. Kh2
{[%clk 0:00:19.9]} 32... Nc5 {[%clk 0:00:12]} 33. Bxg6 {[%clk 0:00:16.5]} 33...
fxg6 {[%clk 0:00:10.1]} 34. Qxg6 {[%clk 0:00:16.5]} 34... Nf5 {[%clk 0:00:08.2]}
35. Qxh5 {[%clk 0:00:13.1]} 35... Qf7 {[%clk 0:00:08.3]} 36. Qxf7+ {[%clk
0:00:11.5]} 36... Kxf7 {[%clk 0:00:08.5]} 37. Bxg7 {[%clk 0:00:11.5]} 37... Kxg7
{[%clk 0:00:07.8]} 38. g4 {[%clk 0:00:10.4]} 38... Nd4 {[%clk 0:00:07.6]} 39. f4
{[%clk 0:00:09.2]} 39... Kg6 {[%clk 0:00:07]} 40. Kg2 {[%clk 0:00:05.6]} 40...
Ne2 {[%clk 0:00:07.1]} 41. Rc2 {[%clk 0:00:03.5]} 41... Nxf4+ {[%clk 0:00:07.2]}
42. Kf3 {[%clk 0:00:01.9]} 42... Nfd3 {[%clk 0:00:08]} 0-1